bitfinex-derivatives/quotes_BNBF0:USTF0_20251010
["timestamp","ask_amount","ask_price","bid_price","bid_amount"]
[1760112581408,1.2014271,1225.8,1224.3,0.52717314]
[1760112581607,1.2014271,1225.8,1224.4,0.52717314]
[1760112581812,1.34355638,1225.9,1224.5,0.52717314]
[1760112582016,1.34355638,1225.9,1224.1,0.59902114]
[1760112582215,1.34355638,1225.9,1224.2,0.52717218]
[1760112582416,0.14212928,1225.9,1224.3,0.52717218]
[1760112582716,0.14212928,1225.9,1224.4,0.52717218]
[1760112583017,0.14212928,1225.9,1224.5,0.52717218]
[1760112583219,0.14212928,1225.9,1224.0,0.59902114]
[1760112583422,0.14212928,1225.9,1224.1,0.52717141]
[1760112583622,0.14212928,1225.9,1224.2,0.52717141]
[1760112583823,0.14212928,1225.9,1224.3,0.52717141]
[1760112584020,0.14212928,1225.9,1224.4,0.52717141]
[1760112584220,0.14212928,1225.9,1224.5,0.52717141]
[1760112584419,0.14212928,1225.9,1223.9,0.59902114]
[1760112584623,0.14212928,1225.9,1224.0,0.52716684]
[1760112584822,0.14212928,1225.9,1224.1,0.52716684]
[1760112585021,0.14212928,1225.9,1224.2,0.52716684]
[1760112585321,0.14212928,1225.9,1224.3,0.52716684]
[1760112585525,0.14212928,1225.9,1223.9,0.59902114]
[1760112585526,0.14212928,1225.9,1224.4,0.52716684]
[1760112585721,0.14212928,1225.9,1223.9,0.59902114]
[1760112585722,0.14212928,1225.9,1224.5,0.52716684]
[1760112585926,0.14212928,1225.9,1223.9,0.59902114]
[1760112586222,0.14212928,1225.9,1224.0,0.52716081]
[1760112586423,0.14212928,1225.9,1224.1,0.52716081]
[1760112586623,1.2014271,1225.8,1224.2,0.52716081]
[1760112586824,1.2014271,1225.8,1224.3,0.52716081]
[1760112587025,1.2014271,1225.8,1223.9,0.59902114]
[1760112587226,1.2014271,1225.8,1224.0,0.52720885]
[1760112587424,1.2014271,1225.8,1224.1,0.52720885]
[1760112587627,1.34355638,1225.9,1224.2,0.52720885]
[1760112587828,0.14212928,1225.9,1224.3,0.52720885]
[1760112588026,0.14212928,1225.9,1224.4,1.12622999]
[1760112588229,0.14212928,1225.9,1224.5,1.12622999]
[1760112588529,0.14212928,1225.9,1224.6,0.52720885]
[1760112588730,0.14212928,1225.9,1224.7,0.52720885]
[1760112588930,0.14212928,1225.9,1224.5,0.59902114]
[1760112588931,0.14212928,1225.9,1224.8,0.52720885]
[1760112589131,0.14212928,1225.9,1224.5,0.59902114]
[1760112589328,0.14212928,1225.9,1224.6,0.52663024]
[1760112589631,0.14212928,1225.9,1224.7,0.52663024]
[1760112589833,0.14212928,1225.9,1224.3,0.59902114]
[1760112590032,0.14212928,1225.9,1224.4,0.5264037]
[1760112590330,0.14212928,1225.9,1224.5,0.5264037]
[1760112590528,0.14212928,1225.9,1224.1,0.59902114]
[1760112590731,0.14212928,1225.9,1224.2,0.52670955]
[1760112590932,0.14212928,1225.9,1224.3,0.52670955]
[1760112591132,0.14212928,1225.9,1224.4,0.52670955]
[1760112591331,0.14212928,1225.9,1224.5,0.52670955]
[1760112591534,0.14212928,1225.9,1224.6,0.52670955]
[1760112591829,0.14212928,1225.9,1224.7,0.52670955]
[1760112592034,0.14212928,1225.9,1224.8,0.52670955]
[1760112592333,0.14212928,1225.9,1224.9,0.52670955]
[1760112592534,0.14212928,1225.9,1225.0,0.52670955]
[1760112592834,0.14212928,1225.9,1224.1,0.59902114]
[1760112593135,0.14212928,1225.9,1224.6,0.59902114]
[1760112593331,0.14212928,1225.9,1224.7,0.52663279]
[1760112593537,0.14212928,1225.9,1224.8,0.52663279]
[1760112593838,0.14212928,1225.9,1224.9,0.52663279]
[1760112594032,0.14212928,1225.9,1225.0,0.52663279]
[1760112594233,0.14212928,1225.9,1224.3,0.59902114]
[1760112594434,0.14212928,1225.9,1224.4,0.52635307]
[1760112594635,0.14212928,1225.9,1224.5,0.52635307]
[1760112594934,0.14212928,1225.9,1224.6,0.52635307]
[1760112595138,0.14212928,1225.9,1224.7,0.52635307]
[1760112595437,0.14212928,1225.9,1224.8,0.52635307]
[1760112595638,0.14212928,1225.9,1224.9,0.52635307]
[1760112595836,0.14212928,1225.9,1224.4,0.59902114]
[1760112596132,0.14212928,1225.9,1224.5,0.52591529]
[1760112596340,0.14212928,1225.9,1224.6,0.52591529]
[1760112596534,1.34355638,1225.9,1224.1,0.59902114]
[1760112596737,0.14212928,1225.9,1224.2,0.52651945]
[1760112596934,0.14212928,1225.9,1224.3,0.52651945]
[1760112597235,0.14212928,1225.9,1224.4,0.52651945]
[1760112597533,0.14212928,1225.9,1224.5,0.52651945]
[1760112597736,0.14212928,1225.9,1224.6,0.52651945]
[1760112597938,0.14212928,1225.9,1224.7,0.52651945]
[1760112598239,0.14212928,1225.9,1224.8,0.52651945]
[1760112598538,0.14212928,1225.9,1224.9,0.52651945]
[1760112598740,0.14212928,1225.9,1224.2,0.59902114]
[1760112598936,0.14212928,1225.9,1224.3,1.12600454]
[1760112599136,0.14212928,1225.9,1224.4,0.5269834]
[1760112599340,0.14212928,1225.9,1224.5,0.5269834]
[1760112599540,0.14212928,1225.9,1223.9,0.59902114]
[1760112599738,1.34355638,1225.9,1224.0,0.52719896]
[1760112599936,0.14212928,1225.9,1224.1,0.52719896]
[1760112600136,0.14212928,1225.9,1224.2,0.52719896]
[1760112600340,0.14212928,1225.9,1224.3,0.52719896]
[1760112600642,1.2014271,1225.8,1223.8,0.59902114]
[1760112600836,1.2014271,1225.8,1223.5,0.80125273]
[1760112600837,1.2014271,1225.4,1223.9,0.52717969]
[1760112601041,1.2014271,1225.4,1224.0,0.52717969]
[1760112601237,1.2014271,1225.4,1224.1,0.52717969]
[1760112601437,1.2014271,1225.5,1223.6,0.59902114]
[1760112601639,1.2014271,1225.4,1223.7,0.52702606]
[1760112601840,1.2014271,1225.7,1223.8,0.52702606]
[1760112602042,1.2014271,1225.7,1223.9,0.52702606]
[1760112602244,1.2014271,1225.7,1223.4,0.59902114]
[1760112602541,0.80970741,1225.4,1223.3,0.59902114]
[1760112603543,0.80970741,1225.6,1223.3,0.59902114]
[1760112604240,0.80970741,1225.4,1223.1,0.59902114]
[1760112604442,0.80970741,1225.4,1222.8,0.80125273]
[1760112604443,0.80970741,1225.4,1223.2,0.59902114]
[1760112604640,0.80970741,1225.5,1223.2,0.59902114]
[1760112604840,0.80970741,1225.4,1223.2,0.59902114]
[1760112605546,0.80970741,1225.3,1223.1,0.59902114]
[1760112605742,0.80970741,1225.2,1223.1,0.60862661]
[1760112605945,0.80970741,1225.1,1223.0,0.60862661]
[1760112606140,0.80970741,1225.2,1223.1,0.60862661]
[1760112606346,0.80970741,1225.2,1223.0,0.60862661]
[1760112606542,0.80970741,1225.3,1223.1,0.60862661]
[1760112606745,0.80970741,1225.3,1223.2,0.60862661]
[1760112606942,0.80970741,1225.4,1223.3,0.60862661]
[1760112607444,0.80970741,1225.4,1223.2,0.60862661]
[1760112607643,0.80970741,1225.3,1223.1,0.60862661]
[1760112608048,0.80970741,1225.4,1223.1,0.60862661]
[1760112608345,0.80970741,1225.5,1223.1,0.60862661]
[1760112608544,0.80970741,1225.5,1223.2,0.60862661]
[1760112608748,0.80970741,1225.3,1223.1,0.60862661]
[1760112609246,0.80970741,1225.2,1223.0,0.60862661]
[1760112609750,0.80970741,1225.8,1222.8,0.60862661]
[1760112610246,0.80970741,1225.7,1222.9,0.60862661]
[1760112610550,0.80970741,1225.7,1222.8,0.60862661]
[1760112611550,0.80970741,1225.6,1222.9,0.60862661]
[1760112611754,0.80970741,1225.5,1222.9,0.60862661]
[1760112612050,0.80970741,1224.8,1222.6,0.60862661]
[1760112612353,0.80970741,1224.9,1222.6,0.60862661]
[1760112613152,0.80970741,1225.0,1222.6,0.60862661]
[1760112613458,0.80970741,1225.2,1222.6,0.60862661]
[1760112613752,0.80970741,1225.6,1222.5,0.60862661]
[1760112613955,0.95183669,1225.9,1222.8,0.60862661]
[1760112614152,0.14212928,1225.9,1222.9,0.60862661]
[1760112614356,0.80970741,1225.8,1222.9,0.60862661]
[1760112615056,0.80970741,1225.6,1223.0,0.60862661]
[1760112615254,0.80970741,1225.8,1223.1,0.60862661]
[1760112616259,0.95183669,1225.9,1223.2,0.60862661]
[1760112616455,0.14212928,1225.9,1223.2,0.60862661]
[1760112616654,0.14212928,1225.9,1223.1,0.60862661]
[1760112616862,0.14212928,1225.9,1223.2,0.60862661]
[1760112618160,0.80970741,1226.2,1223.2,0.60862661]
[1760112618361,0.14211593,1225.3,1223.2,0.60862661]
[1760112618659,0.80970741,1225.4,1223.0,0.60862661]
[1760112618857,0.14214264,1224.8,1223.0,0.60862661]
[1760112619462,0.14214264,1224.8,1222.9,0.60862661]
[1760112619761,0.14214264,1224.8,1222.7,0.60862661]
[1760112620159,0.14214264,1224.8,1222.6,0.60862661]
[1760112620960,0.14214264,1224.8,1222.7,0.60862661]
[1760112621561,0.14214264,1224.8,1222.6,0.60862661]
[1760112622060,0.14214264,1224.8,1222.7,0.60862661]
[1760112627162,0.14214264,1224.8,1222.5,0.60862661]
[1760112628462,0.14214264,1224.8,1222.4,0.60862661]
[1760112628661,0.14214264,1224.8,1222.3,0.60862661]
[1760112629068,0.14214264,1224.8,1222.2,0.60862661]
[1760112629271,0.95185005,1224.8,1222.0,0.60862661]
[1760112629467,0.95185005,1224.8,1221.9,0.60862661]
[1760112629661,0.14214264,1224.8,1221.9,0.60862661]
[1760112629864,0.14214264,1224.8,1221.7,0.60862661]
[1760112630063,0.14214264,1224.8,1221.6,0.60862661]
[1760112630260,0.14214264,1224.8,1221.5,0.60862661]
[1760112630965,0.80970741,1224.5,1221.7,0.60862661]
[1760112631266,0.14214264,1224.8,1221.6,0.60862661]
[1760112631465,0.14214264,1224.8,1221.5,0.60862661]
[1760112631664,0.14214264,1224.8,1221.9,0.60862661]
[1760112631866,0.14214264,1224.8,1221.7,0.60862661]
[1760112632961,0.95185005,1224.8,1221.8,0.60862661]
[1760112633264,0.95185005,1224.8,1221.6,0.60862661]
[1760112633465,0.95185005,1224.8,1221.5,0.60862661]
[1760112634265,0.80970741,1224.7,1221.6,0.60862661]
[1760112634562,0.95185005,1224.8,1221.6,0.60862661]
[1760112634765,0.95185005,1224.8,1221.5,0.60862661]
[1760112635065,0.95185005,1224.8,1221.6,0.60862661]
[1760112635263,0.95185005,1224.8,1221.5,0.60862661]
[1760112635463,0.14214264,1224.8,1221.5,0.60862661]
[1760112635663,0.14214264,1224.8,1221.6,0.60862661]
[1760112635860,0.14214264,1224.8,1221.8,0.60862661]
[1760112636166,0.14214264,1224.8,1222.1,0.60862661]
[1760112636666,0.14214264,1224.8,1222.0,0.60862661]
[1760112637967,0.14214264,1224.8,1221.9,0.60862661]
[1760112638168,0.14214264,1224.8,1222.0,0.60862661]
[1760112638468,0.95185005,1224.8,1220.8,0.60862661]
[1760112638668,0.80970741,1224.5,1221.0,0.60862661]
[1760112638968,0.80970741,1224.7,1221.2,0.60862661]
[1760112639769,0.14214264,1224.8,1221.1,0.60862661]
[1760112640263,0.14214264,1224.8,1221.0,0.60862661]
[1760112640564,0.80970741,1224.4,1221.1,0.60862661]
[1760112641464,0.80970741,1224.4,1220.9,0.80125273]
[1760112641867,1.2014271,1224.6,1220.9,0.80125273]
[1760112642165,1.2014271,1224.6,1220.7,1.201879]
[1760112642869,0.14214264,1224.8,1220.7,1.201879]
[1760112643068,0.14214264,1224.8,1219.6,2.0031318]
[1760112652677,0.14214264,1224.8,1220.0,0.59943629]
[1760112652678,0.79536652,1224.3,1220.0,0.59943629]
[1760112653980,0.93750916,1224.8,1219.7,0.59943629]
[1760112654178,0.14214264,1224.8,1219.7,0.59943629]
[1760112655078,0.93750916,1224.8,1219.7,0.59943629]
[1760112655278,0.93750916,1224.8,1219.8,0.59943629]
[1760112656177,0.79536652,1224.7,1219.8,0.59943629]
[1760112656576,0.14214264,1224.8,1219.8,0.59943629]
[1760112656577,0.79536652,1224.6,1219.8,0.59943629]
[1760112656878,0.79536652,1224.6,1219.9,0.59943629]
[1760112657674,0.79536652,1224.5,1219.9,0.59943629]
[1760112657875,0.79536652,1224.4,1219.9,0.59943629]
[1760112659079,0.79536652,1224.4,1217.0,2.8043845]
[1760112659080,0.79536652,1224.3,1220.0,0.59943629]
[1760112659877,0.79536652,1224.3,1220.1,0.59943629]
[1760112660377,0.79536652,1224.1,1220.1,0.59943629]
[1760112660581,0.79536652,1224.2,1220.1,0.59943629]
[1760112660880,0.93750916,1224.8,1220.1,0.59943629]
[1760112661576,0.79536652,1224.2,1220.1,0.59943629]
[1760112661776,0.79536652,1224.6,1219.9,0.59943629]
[1760112661976,0.79536652,1224.4,1220.0,0.59943629]
[1760112662178,0.79536652,1224.1,1220.1,0.59943629]
[1760112662380,0.79536652,1223.8,1219.9,0.59943629]
[1760112662676,0.79536652,1223.9,1219.9,0.59943629]
[1760112663374,0.79536652,1223.8,1219.9,0.59943629]
[1760112663975,0.79536652,1223.9,1219.9,0.59943629]
[1760112664377,0.79536652,1223.9,1220.0,0.59943629]
[1760112664582,0.79536652,1224.1,1220.1,0.59943629]
[1760112664882,0.79536652,1224.0,1220.1,0.59943629]
[1760112665282,0.79536652,1224.0,1219.9,0.59943629]
[1760112665478,0.79536652,1224.1,1219.9,0.59943629]
[1760112665679,0.79536652,1223.9,1219.8,0.59943629]
[1760112665979,0.79536652,1223.9,1219.9,0.59943629]
[1760112666782,0.79536652,1223.8,1219.9,0.59943629]
[1760112667484,0.79536652,1223.8,1219.8,0.59943629]
[1760112667685,0.79536652,1223.8,1219.9,0.59943629]
[1760112667980,0.79536652,1224.0,1219.8,0.59943629]
[1760112668184,0.79536652,1224.1,1219.8,0.59943629]
[1760112668685,0.79536652,1224.3,1219.7,0.59943629]
[1760112668885,0.79536652,1224.4,1219.8,0.59943629]
[1760112669385,0.79536652,1224.3,1219.8,0.59943629]
[1760112670981,0.79536652,1224.0,1219.8,0.59943629]
[1760112672186,0.79536652,1223.7,1219.7,0.59943629]
[1760112672483,0.79536652,1223.7,1219.6,0.59943629]
[1760112672689,0.79536652,1223.8,1219.7,0.59943629]
[1760112673083,0.79536652,1223.8,1219.6,0.59927444]
[1760112673984,0.79536652,1224.1,1219.5,0.59927444]
[1760112674187,0.79536652,1224.3,1219.7,0.59927444]
[1760112675388,0.79536652,1224.1,1219.8,0.59927444]
[1760112675687,0.79536652,1224.1,1219.7,0.59927444]
[1760112675887,0.79536652,1224.1,1219.4,0.79924839]
[1760112675888,0.79536652,1224.2,1219.8,0.59927444]
[1760112676287,0.79536652,1224.1,1219.8,0.59927444]
[1760112676884,0.79536652,1224.0,1219.8,0.59927444]
[1760112677185,0.79536652,1223.9,1219.8,0.59927444]
[1760112677384,0.79536652,1223.9,1219.9,0.59927444]
[1760112678487,0.79536652,1223.8,1219.9,0.59927444]
[1760112678788,0.79536652,1223.7,1219.8,0.59927444]
[1760112679288,0.79536652,1223.7,1219.9,0.59927444]
[1760112679889,0.79536652,1223.9,1219.7,0.59927444]
[1760112680285,0.79536652,1223.8,1219.7,0.59927444]
[1760112680489,0.79536652,1224.2,1219.5,0.59927444]
[1760112680885,0.79536652,1224.3,1219.6,0.59927444]
[1760112681391,0.79536652,1224.3,1219.7,0.59927444]
[1760112681687,0.79536652,1223.7,1219.7,1.39852283]
[1760112681885,0.79536652,1223.9,1220.2,0.59927444]
[1760112682092,0.79536652,1223.9,1220.3,0.59927444]
[1760112682295,0.79536652,1224.2,1220.5,0.59927444]
[1760112682793,0.79536652,1224.1,1220.5,0.59927444]
[1760112682992,0.79536652,1224.2,1220.5,0.59927444]
[1760112683189,0.79536652,1224.1,1220.5,0.59927444]
[1760112683390,0.79536652,1224.0,1220.6,0.59927444]
[1760112683691,0.79536652,1223.9,1220.4,0.59927444]
[1760112683896,0.79536652,1223.8,1220.4,0.59927444]
[1760112684094,0.79536652,1223.7,1220.4,0.59927444]
[1760112684394,0.14214264,1224.8,1219.9,1.1988725]
[1760112684395,0.79536652,1223.5,1220.1,0.59927444]
[1760112684597,0.79536652,1223.7,1220.1,0.59927444]
[1760112684993,0.79536652,1223.7,1220.2,0.59927444]
[1760112685293,0.79536652,1223.5,1220.2,0.59927444]
[1760112685898,0.79536652,1223.6,1220.2,0.59927444]
[1760112686394,0.79536652,1223.5,1220.2,0.59927444]
[1760112686993,0.79536652,1223.7,1220.3,0.59927444]
[1760112687493,0.79536652,1223.7,1217.9,2.8043845]
[1760112687494,0.79536652,1223.6,1220.5,0.59927444]
[1760112687697,0.79536652,1223.7,1220.4,0.59927444]
[1760112688198,0.79536652,1223.6,1220.5,0.59927444]
[1760112688596,0.79536652,1223.8,1220.6,0.59927444]
[1760112688900,0.79536652,1224.5,1220.8,0.59927444]
[1760112689399,0.79536652,1224.2,1221.3,0.59927444]
[1760112689599,0.79536652,1224.3,1221.3,0.59927444]
[1760112689893,0.79536652,1224.3,1221.1,0.79924839]
[1760112689894,0.79536652,1224.3,1221.4,0.59927444]
[1760112690096,0.79536652,1224.2,1221.3,0.59927444]
[1760112690395,0.79536652,1224.1,1221.2,0.59927444]
[1760112690696,0.79536652,1224.1,1220.9,0.79924839]
[1760112690697,0.79536652,1224.0,1220.9,0.59927444]
[1760112690894,0.14214264,1224.8,1220.5,0.79924839]
[1760112690895,0.79536652,1224.1,1220.8,0.59927444]
[1760112691095,0.79536652,1224.2,1220.9,0.59927444]
[1760112691295,0.14214264,1224.8,1220.9,0.59927444]
[1760112691296,0.79536652,1224.1,1220.9,0.59927444]
[1760112691497,0.79536652,1224.1,1221.0,0.59927444]
[1760112692297,0.79536652,1224.1,1221.1,0.59927444]
[1760112692600,1.1930497,1224.5,1221.2,1.12240254]
[1760112692896,1.1930497,1224.2,1221.4,0.59927444]
[1760112693099,1.1930497,1224.2,1221.5,0.5231281]
[1760112693295,1.1930497,1224.2,1221.6,0.5231281]
[1760112693494,1.1930497,1224.2,1221.7,0.5231281]
[1760112693693,0.14214264,1224.8,1221.8,0.5231281]
[1760112693694,1.1930497,1224.3,1221.8,0.5231281]
[1760112693898,0.14214264,1224.8,1221.9,0.5231281]
[1760112694099,0.14214264,1224.8,1222.0,0.5231281]
[1760112694401,0.14214264,1224.8,1222.1,0.5231281]
[1760112694596,0.14214264,1224.8,1221.4,0.59927444]
[1760112694900,0.14214264,1224.8,1221.5,0.5233084]
[1760112695101,0.14214264,1224.8,1221.6,0.5233084]
[1760112695300,0.14214264,1224.8,1221.7,0.5233084]
[1760112695596,0.14214264,1224.8,1221.8,0.5233084]
[1760112695797,0.14214264,1224.8,1221.9,0.5233084]
[1760112695994,0.14214264,1224.8,1222.0,0.5233084]
[1760112696201,1.1930497,1224.7,1221.3,0.59927444]
[1760112696496,1.1930497,1224.7,1221.4,0.52398832]
[1760112696701,0.14214264,1224.8,1221.5,0.52398832]
[1760112697000,1.1930497,1224.5,1221.6,0.52398832]
[1760112697201,1.1930497,1224.5,1221.7,0.52398832]
[1760112697500,0.14214264,1224.8,1221.8,0.52398832]
[1760112697698,0.14214264,1224.8,1221.9,0.52398832]
[1760112697903,0.14214264,1224.8,1222.0,0.52398832]
[1760112698197,0.14214264,1224.8,1222.1,0.52398832]
[1760112698501,0.14214264,1224.8,1222.2,0.52398832]
[1760112698699,0.14214264,1224.8,1222.3,0.52398832]
[1760112698901,0.14214264,1224.8,1222.4,0.52398832]
[1760112699102,0.14214264,1224.8,1222.5,0.52398832]
[1760112699299,0.14214264,1224.8,1221.9,0.59927444]
[1760112699498,1.33519234,1224.8,1222.0,0.5243931]
[1760112699701,1.1930497,1224.7,1222.1,0.5243931]
[1760112699902,1.1930497,1224.7,1221.9,0.59927444]
[1760112699903,1.1930497,1224.7,1222.2,0.5243931]
[1760112700101,1.1930497,1224.7,1222.3,0.5243931]
[1760112700300,1.1930497,1224.7,1222.4,0.5243931]
[1760112700503,1.1930497,1224.7,1221.9,0.59927444]
[1760112700703,1.1930497,1224.6,1222.0,0.52422711]
[1760112701004,1.1930497,1224.7,1222.1,0.52422711]
[1760112701199,1.1930497,1224.7,1222.2,0.52422711]
[1760112701401,1.1930497,1224.7,1222.3,0.52422711]
[1760112701600,1.1930497,1224.7,1221.2,1.1988725]
[1760112701601,1.1930497,1224.7,1221.6,0.59927444]
[1760112701905,1.33519234,1224.8,1221.7,1.12337352]
[1760112702203,1.33519234,1224.8,1221.8,0.52409908]
[1760112702404,1.33519234,1224.8,1221.9,0.52409908]
[1760112702602,1.1930497,1224.7,1222.0,0.52409908]
[1760112702802,1.1930497,1224.7,1222.1,0.52409908]
[1760112703003,1.1930497,1224.7,1222.2,0.52409908]
[1760112703201,1.1930497,1224.7,1222.3,0.52409908]
[1760112703507,1.1930497,1224.7,1221.7,0.59927444]
[1760112703803,1.1930497,1224.5,1221.8,1.12306774]
[1760112704003,1.1930497,1224.5,1221.9,0.5237933]
[1760112704207,0.14214264,1224.8,1222.0,0.5237933]
[1760112704402,0.14214264,1224.8,1221.6,0.59927444]
[1760112704403,0.14214264,1224.8,1222.1,0.5237933]
[1760112704607,0.14214264,1224.8,1222.2,0.5237933]
[1760112704904,0.14214264,1224.8,1221.6,0.59927444]
[1760112705208,1.1930497,1224.5,1221.7,0.52362911]
[1760112705403,1.1930497,1224.6,1221.8,0.52362911]
[1760112705605,1.1930497,1224.6,1221.6,0.59927444]
[1760112705606,1.1930497,1224.6,1221.9,0.52362911]
[1760112705810,1.1930497,1224.6,1222.0,0.52362911]
[1760112706011,1.1930497,1224.6,1222.1,0.52362911]
[1760112706211,1.1930497,1224.6,1222.2,0.52352427]
[1760112706411,0.14214264,1224.8,1222.3,0.52352427]
[1760112706612,0.14214264,1224.8,1222.4,0.52352427]
[1760112706810,0.14214264,1224.8,1222.5,0.52352427]
[1760112707114,0.14214264,1224.8,1221.5,0.59927444]
[1760112707312,0.14214264,1224.8,1221.7,0.59927444]
[1760112707513,0.14214264,1224.8,1221.8,0.5234109]
[1760112707715,0.14214264,1224.8,1221.9,0.5234109]
[1760112707915,0.14214264,1224.8,1222.0,0.5234109]
[1760112708111,0.14214264,1224.8,1222.1,0.5234109]
[1760112708416,1.1930497,1224.7,1221.6,0.59927444]
[1760112708716,1.1930497,1224.6,1221.7,0.52328332]
[1760112708912,1.1930497,1224.6,1221.8,0.52328332]
[1760112709112,1.1930497,1224.7,1221.9,0.52328332]
[1760112709312,1.1930497,1224.7,1222.0,0.52328332]
[1760112709612,1.1930497,1224.7,1221.5,0.59927444]
[1760112709817,1.1930497,1224.7,1221.6,0.52320952]
[1760112710013,1.1930497,1224.7,1221.7,0.52320952]
[1760112710213,1.1930497,1224.7,1221.8,0.52320952]
[1760112710417,0.14214264,1224.8,1221.9,0.52320952]
[1760112710418,1.1930497,1224.5,1221.9,0.52320952]
[1760112710618,1.1930497,1224.6,1222.0,0.52320952]
[1760112710819,1.1930497,1224.6,1222.1,0.52320952]
[1760112711117,1.1930497,1224.6,1221.6,0.59927444]
[1760112711315,1.1930497,1224.6,1221.7,0.52299989]
[1760112711515,1.1930497,1224.6,1221.8,0.52299989]
[1760112711716,1.1930497,1224.6,1221.9,0.52299989]
[1760112711918,1.1930497,1224.6,1222.0,0.52299989]
[1760112712117,1.1930497,1224.6,1222.1,0.52299989]
[1760112712317,1.1930497,1224.6,1221.6,0.59927444]
[1760112712518,1.1930497,1224.6,1221.7,0.52291829]
[1760112712717,1.1930497,1224.7,1221.8,0.52291829]
[1760112712921,1.1930497,1224.6,1221.9,0.52291829]
[1760112713116,1.1930497,1224.6,1222.0,0.52291829]
[1760112713416,1.1930497,1224.5,1221.4,0.59927444]
[1760112713620,1.1930497,1224.5,1221.5,0.52292216]
[1760112713816,1.1930497,1224.5,1221.6,0.52292216]
[1760112714018,1.1930497,1224.5,1221.7,0.52292216]
[1760112714317,1.1930497,1224.6,1221.8,0.52292216]
[1760112714521,1.1930497,1224.6,1221.9,0.52292216]
[1760112714822,1.1930497,1224.7,1221.4,0.59927444]
[1760112715017,1.1930497,1224.7,1221.5,0.52289472]
[1760112715219,1.1930497,1224.7,1221.6,0.52289472]
[1760112715417,1.1930497,1224.7,1221.7,0.52289472]
[1760112715617,1.1930497,1224.7,1221.8,0.52289472]
[1760112715821,1.1930497,1224.7,1221.9,0.52289472]
[1760112716018,1.1930497,1224.7,1221.3,0.59927444]
[1760112716222,1.1930497,1224.7,1221.4,1.12183551]
[1760112716519,1.33519234,1224.8,1221.5,0.52256107]
[1760112716822,1.33519234,1224.8,1221.6,0.52256107]
[1760112717022,1.33519234,1224.8,1221.7,0.52256107]
[1760112717223,0.14214264,1224.8,1221.8,0.52256107]
[1760112717422,0.14214264,1224.8,1221.9,0.52256107]
[1760112717625,0.14214264,1224.8,1222.0,0.52256107]
[1760112717822,0.14214264,1224.8,1221.3,0.59927444]
[1760112718025,0.14214264,1224.8,1221.4,0.52238159]
[1760112718225,0.14214264,1224.8,1221.5,0.52238159]
[1760112718422,0.14214264,1224.8,1221.6,0.52238159]
[1760112718722,0.14214264,1224.8,1221.7,0.52238159]
[1760112718926,0.14214264,1224.8,1221.8,0.52238159]
[1760112719126,0.14214264,1224.8,1221.9,0.52238159]
[1760112719328,0.14214264,1224.8,1222.0,0.52238159]
[1760112719525,0.14214264,1224.8,1222.1,0.52238159]
[1760112719726,0.14214264,1224.8,1222.2,0.52238159]
[1760112719926,0.14214264,1224.8,1222.3,0.52238159]
[1760112720127,0.14214264,1224.8,1221.9,0.59927444]
[1760112720324,0.14214264,1224.8,1222.0,0.52173504]
[1760112720526,0.14214264,1224.8,1222.2,0.59927444]
[1760112720729,0.14214264,1224.8,1222.3,0.52173504]
[1760112720925,0.14214264,1224.8,1222.4,0.52173504]
[1760112721127,0.14214264,1224.8,1222.5,0.52173504]
[1760112721330,0.14214264,1224.8,1222.6,0.52173504]
[1760112721531,0.14214264,1224.8,1222.7,0.52173504]
[1760112721830,0.14214264,1224.8,1222.1,0.59927444]
[1760112722027,0.14214264,1224.8,1222.2,0.52109491]
[1760112722328,0.14214264,1224.8,1222.3,0.52109491]
[1760112722526,0.14214264,1224.8,1222.4,0.52109491]
[1760112722731,0.14214264,1224.8,1222.5,0.52109491]
[1760112722928,0.14214264,1224.8,1222.6,0.52109491]
[1760112723132,0.14214264,1224.8,1222.1,0.59927444]
[1760112723332,0.14214264,1224.8,1222.2,0.52072538]
[1760112723628,0.14214264,1224.8,1222.3,0.52072538]
[1760112723834,0.14214264,1224.8,1222.4,0.52072538]
[1760112724032,0.14214264,1224.8,1222.5,0.52072538]
[1760112724231,0.14214264,1224.8,1222.6,0.52072538]
[1760112724430,0.14214264,1224.8,1222.7,0.52072538]
[1760112724631,0.14214264,1224.8,1222.2,0.59927444]
[1760112724830,0.14214264,1224.8,1222.3,0.5205028]
[1760112725031,0.14214264,1224.8,1222.4,0.5205028]
[1760112725231,0.14214264,1224.8,1222.5,0.5205028]
[1760112725430,0.14214264,1224.8,1222.6,0.5205028]
[1760112725634,0.14214264,1224.8,1222.7,0.5205028]
[1760112725935,0.14214264,1224.8,1222.8,0.5205028]
[1760112726133,0.14214264,1224.8,1222.9,0.5205028]
[1760112726336,0.14214264,1224.8,1222.4,0.59927444]
[1760112726634,0.14214264,1224.8,1222.5,0.51993637]
[1760112726833,0.14214264,1224.8,1222.6,0.51993637]
[1760112727032,0.14214264,1224.8,1222.7,0.51993637]
[1760112727233,0.14214264,1224.8,1222.3,0.59927444]
[1760112727434,0.14214264,1224.8,1222.4,0.51984996]
[1760112727637,0.14214264,1224.8,1222.5,0.51984996]
[1760112727932,0.14214264,1224.8,1222.6,0.51984996]
[1760112728134,0.14214264,1224.8,1222.7,0.51984996]
[1760112728333,0.14214264,1224.8,1222.2,0.59927444]
[1760112728535,0.14214264,1224.8,1222.3,0.51976925]
[1760112728837,0.14214264,1224.8,1222.4,0.51976925]
[1760112729035,0.14214264,1224.8,1222.5,0.51976925]
[1760112729238,0.14214264,1224.8,1222.6,0.51976925]
[1760112729534,0.14214264,1224.8,1222.7,0.51976925]
[1760112729738,0.14214264,1224.8,1222.1,0.59927444]
[1760112729940,0.14214264,1224.8,1222.2,1.11880776]
[1760112730239,0.14214264,1224.8,1222.3,0.51953332]
[1760112730439,0.14214264,1224.8,1222.4,0.51953332]
[1760112730734,0.14214264,1224.8,1222.2,0.59927444]
[1760112730735,0.14214264,1224.8,1222.5,0.51953332]
[1760112731038,0.14214264,1224.8,1222.6,0.51953332]
[1760112731237,0.14214264,1224.8,1222.7,0.51953332]
[1760112731436,0.14214264,1224.8,1222.2,0.59927444]
[1760112731641,0.14214264,1224.8,1222.3,1.11838904]
[1760112731837,0.14214264,1224.8,1222.5,0.59927444]
[1760112732042,0.14214264,1224.8,1222.6,1.11838904]
[1760112732239,0.14214264,1224.8,1222.7,0.5191146]
[1760112732438,0.14214264,1224.8,1222.8,0.5191146]
[1760112732640,0.14214264,1224.8,1222.9,0.5191146]
[1760112732838,0.14214264,1224.8,1223.0,0.5191146]
[1760112733043,0.14214264,1224.8,1223.1,0.5191146]
[1760112733240,0.14214264,1224.8,1223.2,0.5191146]
[1760112733441,0.14214264,1224.8,1223.3,0.5191146]
[1760112733641,0.14214264,1224.8,1222.9,0.59927444]
[1760112733845,0.14214264,1224.8,1223.0,0.5180988]
[1760112734044,0.14214264,1224.8,1223.1,0.5180988]
[1760112734340,0.14214264,1224.8,1223.2,0.5180988]
[1760112734545,0.14214264,1224.8,1223.3,0.5180988]
[1760112734743,0.14214264,1224.8,1223.4,0.5180988]
[1760112734940,0.14214264,1224.8,1223.5,0.5180988]
[1760112735140,0.14214264,1224.8,1223.6,0.5180988]
[1760112735441,0.14214264,1224.8,1223.0,0.59927444]
[1760112735740,0.14214264,1224.8,1223.1,0.51768212]
[1760112735944,0.14214264,1224.8,1223.2,0.51768212]
[1760112736144,0.14214264,1224.8,1223.3,0.51768212]